[Event "*** Titled Tuesday Blitz"]
[Site "Chess.com"]
[Date "2020.04.14"]
[Round "4"]
[White "goldenspine"]
[Black "Ziachess74"]
[Result "1-0"]
[WhiteElo "2329"]
[BlackElo "2530"]
[TimeControl "180+1"]
[EndTime "10:40:18 PDT"]
[Termination "goldenspine won on time"]

1. d4 {[%clk 0:03:00.9]} 1... d5 {[%clk 0:02:59.2]} 2. c4 {[%clk 0:03:00.8]}
2... c6 {[%clk 0:02:58.9]} 3. Nf3 {[%clk 0:02:56.7]} 3... e6 {[%clk 0:02:58.5]}
4. e3 {[%clk 0:02:56]} 4... Nf6 {[%clk 0:02:58.3]} 5. Nc3 {[%clk 0:02:55.8]}
5... Nbd7 {[%clk 0:02:58.6]} 6. Bd3 {[%clk 0:02:54.6]} 6... dxc4 {[%clk
0:02:56.3]} 7. Bxc4 {[%clk 0:02:55.5]} 7... b5 {[%clk 0:02:55.9]} 8. Bd3 {[%clk
0:02:55.1]} 8... Bb7 {[%clk 0:02:55.7]} 9. O-O {[%clk 0:02:53.5]} 9... a6 {[%clk
0:02:45]} 10. b3 {[%clk 0:02:48.2]} 10... Rc8 {[%clk 0:02:39.5]} 11. Bb2 {[%clk
0:02:48]} 11... Be7 {[%clk 0:02:37]} 12. Rc1 {[%clk 0:02:45.7]} 12... c5 {[%clk
0:02:35]} 13. Bb1 {[%clk 0:02:45.5]} 13... O-O {[%clk 0:02:32.6]} 14. Re1 {[%clk
0:02:43.6]} 14... Nb6 {[%clk 0:02:25.5]} 15. h3 {[%clk 0:02:42.4]} 15... cxd4
{[%clk 0:02:23.8]} 16. Nxd4 {[%clk 0:02:41.2]} 16... Nbd5 {[%clk 0:02:23.5]} 17.
Nxd5 {[%clk 0:02:36.4]} 17... Qxd5 {[%clk 0:02:23.3]} 18. e4 {[%clk 0:02:25.5]}
18... Qg5 {[%clk 0:02:16]} 19. Nf3 {[%clk 0:02:16.8]} 19... Rxc1 {[%clk
0:01:49.6]} 20. Bxc1 {[%clk 0:02:16.4]} 20... Qc5 {[%clk 0:01:43.9]} 21. Be3
{[%clk 0:02:01.8]} 21... Qa3 {[%clk 0:01:38]} 22. Qd4 {[%clk 0:01:57.5]} 22...
Rd8 {[%clk 0:01:26.1]} 23. Qa7 {[%clk 0:01:45]} 23... Bc6 {[%clk 0:00:58.6]} 24.
Bc1 {[%clk 0:01:37.7]} 24... Qc5 {[%clk 0:00:49.9]} 25. Be3 {[%clk 0:01:11.5]}
25... Qxa7 {[%clk 0:00:48]} 26. Bxa7 {[%clk 0:01:12.4]} 26... Bb4 {[%clk
0:00:47.2]} 27. Rc1 {[%clk 0:00:44.7]} 27... Bxe4 {[%clk 0:00:44.6]} 28. Bxe4
{[%clk 0:00:37.8]} 28... Nxe4 {[%clk 0:00:45.5]} 29. Rc6 {[%clk 0:00:37]} 29...
Rd1+ {[%clk 0:00:41.6]} 30. Kh2 {[%clk 0:00:36.3]} 30... h6 {[%clk 0:00:38]} 31.
Rxa6 {[%clk 0:00:35]} 31... Bd6+ {[%clk 0:00:31.3]} 32. g3 {[%clk 0:00:32.4]}
32... Rd3 {[%clk 0:00:27.6]} 33. Kg2 {[%clk 0:00:31.8]} 33... g5 {[%clk
0:00:23.4]} 34. Rb6 {[%clk 0:00:29.7]} 34... b4 {[%clk 0:00:21.4]} 35. Rb5
{[%clk 0:00:28]} 35... Nc3 {[%clk 0:00:16.4]} 36. Ra5 {[%clk 0:00:21.3]} 36...
e5 {[%clk 0:00:12.7]} 37. Nxe5 {[%clk 0:00:19.4]} 37... Bxe5 {[%clk 0:00:13]}
38. Rxe5 {[%clk 0:00:19.8]} 38... Nxa2 {[%clk 0:00:13.6]} 39. Bc5 {[%clk
0:00:17]} 39... Rxb3 {[%clk 0:00:12.9]} 40. Re8+ {[%clk 0:00:16.9]} 40... Kg7
{[%clk 0:00:12.9]} 41. Ra8 {[%clk 0:00:16.8]} 41... Nc3 {[%clk 0:00:11.6]} 42.
Rb8 {[%clk 0:00:15.6]} 42... Nd5 {[%clk 0:00:11.1]} 43. Bf8+ {[%clk 0:00:14.6]}
43... Kg6 {[%clk 0:00:10.7]} 44. Rd8 {[%clk 0:00:13.3]} 44... Nf6 {[%clk
0:00:10]} 45. Rd6 {[%clk 0:00:12]} 45... Kf5 {[%clk 0:00:01.7]} 46. Rb6 {[%clk
0:00:10.6]} 46... Ke5 {[%clk 0:00:02.1]} 47. Bg7 {[%clk 0:00:10]} 1-0

[Event "*** Titled Tuesday Blitz"]
[Site "Chess.com"]
[Date "2020.04.14"]
[Round "4"]
[White "Stormeman100100"]
[Black "mphofmann"]
[Result "1-0"]
[WhiteElo "2456"]
[BlackElo "2263"]
[TimeControl "180+1"]
[EndTime "10:40:20 PDT"]
[Termination "Stormeman100100 won on time"]

1. e4 {[%clk 0:03:00.9]} 1... b6 {[%clk 0:03:00]} 2. d4 {[%clk 0:02:58.5]} 2...
Bb7 {[%clk 0:03:00.1]} 3. Bd3 {[%clk 0:02:57.4]} 3... e6 {[%clk 0:03:00]} 4. Nf3
{[%clk 0:02:52.2]} 4... c5 {[%clk 0:02:59.3]} 5. c3 {[%clk 0:02:50.2]} 5... Nf6
{[%clk 0:02:58.3]} 6. e5 {[%clk 0:02:49.7]} 6... Nd5 {[%clk 0:02:57.6]} 7. O-O
{[%clk 0:02:45.3]} 7... cxd4 {[%clk 0:02:56.3]} 8. cxd4 {[%clk 0:02:46.2]} 8...
Be7 {[%clk 0:02:53.4]} 9. Nc3 {[%clk 0:02:45.3]} 9... O-O {[%clk 0:02:51.4]} 10.
Ne4 {[%clk 0:02:41.2]} 10... Nc6 {[%clk 0:02:48.3]} 11. Bg5 {[%clk 0:02:31.2]}
11... f5 {[%clk 0:02:41.3]} 12. Bxe7 {[%clk 0:02:27.2]} 12... fxe4 {[%clk
0:02:20.6]} 13. Bxd8 {[%clk 0:02:25.6]} 13... exf3 {[%clk 0:02:20.7]} 14. Bh4
{[%clk 0:02:11]} 14... fxg2 {[%clk 0:02:06.1]} 15. Re1 {[%clk 0:02:08]} 15...
Nxd4 {[%clk 0:02:02.1]} 16. Be4 {[%clk 0:02:05.3]} 16... Rf4 {[%clk 0:01:25.1]}
17. Bg3 {[%clk 0:01:24.1]} 17... Rxe4 {[%clk 0:01:18.6]} 18. Rxe4 {[%clk
0:01:25]} 18... Nf5 {[%clk 0:01:13.1]} 19. Rc4 {[%clk 0:01:05.3]} 19... Rf8
{[%clk 0:01:06.1]} 20. Rac1 {[%clk 0:01:02.9]} 20... Nde3 {[%clk 0:01:01.8]} 21.
fxe3 {[%clk 0:00:48.8]} 21... Nxe3 {[%clk 0:01:01]} 22. Qe2 {[%clk 0:00:34.9]}
22... Rf1+ {[%clk 0:00:52.9]} 23. Rxf1 {[%clk 0:00:34.2]} 23... gxf1=Q+ {[%clk
0:00:53.8]} 24. Qxf1 {[%clk 0:00:34.5]} 24... Nxf1 {[%clk 0:00:54.4]} 25. Kxf1
{[%clk 0:00:35.4]} 25... Ba6 {[%clk 0:00:53.3]} 26. b3 {[%clk 0:00:35.2]} 26...
Kf7 {[%clk 0:00:44.6]} 27. Kf2 {[%clk 0:00:33.8]} 27... Bxc4 {[%clk 0:00:42.2]}
28. bxc4 {[%clk 0:00:34.7]} 28... Kg6 {[%clk 0:00:42.6]} 29. Ke3 {[%clk
0:00:32.2]} 29... Kf5 {[%clk 0:00:42.9]} 30. Kd4 {[%clk 0:00:31.3]} 30... g5
{[%clk 0:00:40.8]} 31. c5 {[%clk 0:00:31.2]} 31... h5 {[%clk 0:00:37.6]} 32.
cxb6 {[%clk 0:00:30.1]} 32... axb6 {[%clk 0:00:38.5]} 33. a4 {[%clk 0:00:28.1]}
33... h4 {[%clk 0:00:30.8]} 34. Bf2 {[%clk 0:00:28.1]} 34... Kf4 {[%clk
0:00:23.4]} 35. Be3+ {[%clk 0:00:27.4]} 35... Kf5 {[%clk 0:00:21.6]} 36. Kd3
{[%clk 0:00:25.7]} 36... g4 {[%clk 0:00:20.9]} 37. Bxb6 {[%clk 0:00:21]} 37...
g3 {[%clk 0:00:19.8]} 38. h3 {[%clk 0:00:18.8]} 38... Kxe5 {[%clk 0:00:18.2]}
39. a5 {[%clk 0:00:19]} 39... Kd5 {[%clk 0:00:15]} 40. a6 {[%clk 0:00:18.6]}
40... Kc6 {[%clk 0:00:14.7]} 41. a7 {[%clk 0:00:18.9]} 41... Kb7 {[%clk
0:00:14.3]} 42. Ke2 {[%clk 0:00:17.9]} 42... d5 {[%clk 0:00:09.5]} 43. Bd4
{[%clk 0:00:16.6]} 43... e5 {[%clk 0:00:08.2]} 44. Bxe5 {[%clk 0:00:16.4]} 44...
Kxa7 {[%clk 0:00:08.4]} 45. Bf6 {[%clk 0:00:13]} 45... d4 {[%clk 0:00:04.2]} 46.
Bxd4+ {[%clk 0:00:11.9]} 46... Kb7 {[%clk 0:00:03.3]} 47. Bf6 {[%clk 0:00:12]}
1-0

[Event "*** Titled Tuesday Blitz"]
[Site "Chess.com"]
[Date "2020.04.14"]
[Round "4"]
[White "ljuks68"]
[Black "LastHeroJr"]
[Result "0-1"]
[WhiteElo "2327"]
[BlackElo "2533"]
[TimeControl "180+1"]
[EndTime "10:40:21 PDT"]
[Termination "LastHeroJr won by resignation"]

1. e4 {[%clk 0:02:59.9]} 1... e5 {[%clk 0:02:56.8]} 2. Nf3 {[%clk 0:02:59.8]}
2... Nc6 {[%clk 0:02:57]} 3. Bb5 {[%clk 0:02:59.6]} 3... a6 {[%clk 0:02:56.7]}
4. Ba4 {[%clk 0:02:59.8]} 4... Nf6 {[%clk 0:02:57]} 5. Qe2 {[%clk 0:02:59]} 5...
b5 {[%clk 0:02:55.3]} 6. Bb3 {[%clk 0:02:58.7]} 6... Be7 {[%clk 0:02:55.7]} 7.
c3 {[%clk 0:02:58.9]} 7... O-O {[%clk 0:02:55.3]} 8. d4 {[%clk 0:02:58.9]} 8...
d6 {[%clk 0:02:51.8]} 9. O-O {[%clk 0:02:58]} 9... Bg4 {[%clk 0:02:41]} 10. Rd1
{[%clk 0:02:57.2]} 10... Qb8 {[%clk 0:02:27.1]} 11. h3 {[%clk 0:02:55.7]} 11...
Bh5 {[%clk 0:02:24.6]} 12. g4 {[%clk 0:02:35.5]} 12... Bg6 {[%clk 0:02:23.2]}
13. Bc2 {[%clk 0:02:35.6]} 13... Re8 {[%clk 0:02:10.2]} 14. d5 {[%clk
0:02:26.7]} 14... Na5 {[%clk 0:02:06.9]} 15. Nbd2 {[%clk 0:02:25.9]} 15... Nxd5
{[%clk 0:02:00.8]} 16. Nb3 {[%clk 0:02:13.5]} 16... Nxb3 {[%clk 0:01:55.6]} 17.
Bxb3 {[%clk 0:02:12.8]} 17... Nf6 {[%clk 0:01:45.5]} 18. Bc2 {[%clk 0:01:57.7]}
18... Qb7 {[%clk 0:01:43.8]} 19. Re1 {[%clk 0:01:56.2]} 19... Bf8 {[%clk
0:01:18.3]} 20. Bg5 {[%clk 0:01:50.9]} 20... Nd7 {[%clk 0:01:18.2]} 21. h4
{[%clk 0:01:45]} 21... h6 {[%clk 0:01:12.8]} 22. Bd2 {[%clk 0:01:31.4]} 22... f6
{[%clk 0:00:55.2]} 23. g5 {[%clk 0:01:23.6]} 23... Bh5 {[%clk 0:00:39.1]} 24.
gxh6 {[%clk 0:01:17]} 24... gxh6 {[%clk 0:00:35.8]} 25. Qe3 {[%clk 0:01:13.3]}
25... Kh8 {[%clk 0:00:30.9]} 26. Nh2 {[%clk 0:01:07.3]} 26... Nc5 {[%clk
0:00:28.6]} 27. Kh1 {[%clk 0:00:59.2]} 27... Ne6 {[%clk 0:00:28.4]} 28. Rg1
{[%clk 0:00:55.9]} 28... Nf4 {[%clk 0:00:27.5]} 29. Qg3 {[%clk 0:00:54.4]} 29...
Bf7 {[%clk 0:00:18.1]} 30. Bxf4 {[%clk 0:00:52.1]} 30... exf4 {[%clk 0:00:19]}
31. Qxf4 {[%clk 0:00:52.3]} 31... Re6 {[%clk 0:00:11.5]} 32. Ng4 {[%clk
0:00:42.5]} 32... Bg7 {[%clk 0:00:11.5]} 33. Nxh6 {[%clk 0:00:36.7]} 33... Bh5
{[%clk 0:00:05.1]} 34. Rxg7 {[%clk 0:00:30.7]} 34... Kxg7 {[%clk 0:00:03.8]} 35.
Rg1+ {[%clk 0:00:30.3]} 35... Kh8 {[%clk 0:00:04.1]} 36. Nf5 {[%clk 0:00:27.3]}
36... c5 {[%clk 0:00:03.6]} 37. Rg7 {[%clk 0:00:15.9]} 37... Qxg7 {[%clk
0:00:03]} 38. Nxg7 {[%clk 0:00:15.2]} 38... Kxg7 {[%clk 0:00:03.9]} 39. Qf5
{[%clk 0:00:13.4]} 39... Bf7 {[%clk 0:00:03.4]} 40. h5 {[%clk 0:00:12.3]} 40...
Kf8 {[%clk 0:00:03.3]} 41. h6 {[%clk 0:00:11.8]} 41... Ke7 {[%clk 0:00:03.4]}
42. h7 {[%clk 0:00:10.9]} 42... Re5 {[%clk 0:00:03.5]} 43. Qh3 {[%clk
0:00:09.1]} 43... Rh5 {[%clk 0:00:03.4]} 44. Qxh5 {[%clk 0:00:08.4]} 44... Bxh5
{[%clk 0:00:04.3]} 45. f4 {[%clk 0:00:08.3]} 45... Rh8 {[%clk 0:00:05.2]} 46. e5
{[%clk 0:00:08.1]} 46... fxe5 {[%clk 0:00:05.5]} 47. fxe5 {[%clk 0:00:08.3]}
47... dxe5 {[%clk 0:00:06.4]} 48. Kh2 {[%clk 0:00:08.7]} 48... Kf6 {[%clk
0:00:06.7]} 49. Kg3 {[%clk 0:00:09.2]} 49... Bg6 {[%clk 0:00:07.6]} 50. Kf2
{[%clk 0:00:09.6]} 50... Bxc2 {[%clk 0:00:07.2]} 0-1

[Event "*** Titled Tuesday Blitz"]
[Site "Chess.com"]
[Date "2020.04.14"]
[Round "4"]
[White "avocadosheena"]
[Black "esskeettit"]
[Result "0-1"]
[WhiteElo "2134"]
[BlackElo "2338"]
[TimeControl "180+1"]
[EndTime "10:40:21 PDT"]
[Termination "esskeettit won by resignation"]

1. d4 {[%clk 0:03:00.9]} 1... Nf6 {[%clk 0:02:57.3]} 2. c4 {[%clk 0:03:00.6]}
2... e6 {[%clk 0:02:57.4]} 3. Nf3 {[%clk 0:02:59.4]} 3... d5 {[%clk 0:02:56.6]}
4. Nc3 {[%clk 0:02:56.9]} 4... Be7 {[%clk 0:02:55.8]} 5. cxd5 {[%clk 0:02:50.1]}
5... exd5 {[%clk 0:02:56.7]} 6. Qc2 {[%clk 0:02:49.8]} 6... O-O {[%clk 0:02:55]}
7. Bf4 {[%clk 0:02:42]} 7... c6 {[%clk 0:02:54.7]} 8. e3 {[%clk 0:02:41.8]} 8...
Nbd7 {[%clk 0:02:53.5]} 9. Bd3 {[%clk 0:02:41.1]} 9... Re8 {[%clk 0:02:53.1]}
10. O-O {[%clk 0:02:37.6]} 10... Nf8 {[%clk 0:02:53.2]} 11. h3 {[%clk
0:02:37.3]} 11... Ne6 {[%clk 0:02:41.5]} 12. Bh2 {[%clk 0:02:32.6]} 12... g6
{[%clk 0:02:41.4]} 13. Rab1 {[%clk 0:02:30.4]} 13... a5 {[%clk 0:02:30.9]} 14.
a3 {[%clk 0:02:20.9]} 14... Ng7 {[%clk 0:02:29.8]} 15. b4 {[%clk 0:02:20.3]}
15... axb4 {[%clk 0:02:30.7]} 16. axb4 {[%clk 0:02:20.1]} 16... Bf5 {[%clk
0:02:29.1]} 17. Bxf5 {[%clk 0:02:14.6]} 17... Nxf5 {[%clk 0:02:30]} 18. Na4
{[%clk 0:01:53.2]} 18... Nd6 {[%clk 0:02:04.4]} 19. Bxd6 {[%clk 0:01:22.9]}
19... Bxd6 {[%clk 0:02:02.4]} 20. Nc5 {[%clk 0:01:22.3]} 20... Qe7 {[%clk
0:01:56.8]} 21. Rfc1 {[%clk 0:01:05.3]} 21... Rec8 {[%clk 0:01:39.1]} 22. Qb3
{[%clk 0:00:52.3]} 22... b6 {[%clk 0:01:23.8]} 23. Nd3 {[%clk 0:00:46.3]} 23...
Ne4 {[%clk 0:01:23]} 24. b5 {[%clk 0:00:29.3]} 24... Ra3 {[%clk 0:01:13.4]} 25.
Qd1 {[%clk 0:00:24.7]} 25... c5 {[%clk 0:01:05.7]} 26. dxc5 {[%clk 0:00:23.4]}
26... bxc5 {[%clk 0:01:05.6]} 27. b6 {[%clk 0:00:16.9]} 27... Nc3 {[%clk
0:00:37.3]} 28. Rxc3 {[%clk 0:00:16.5]} 28... Rxc3 {[%clk 0:00:35.9]} 29. Nf4
{[%clk 0:00:16.9]} 29... Bxf4 {[%clk 0:00:34]} 30. exf4 {[%clk 0:00:17.8]} 30...
d4 {[%clk 0:00:32.3]} 31. Ne5 {[%clk 0:00:17.3]} 31... Qb7 {[%clk 0:00:20.2]}
32. Qd2 {[%clk 0:00:15.9]} 32... f6 {[%clk 0:00:18.2]} 33. Ng4 {[%clk
0:00:13.3]} 33... Rc6 {[%clk 0:00:18.3]} 34. Qb2 {[%clk 0:00:11.1]} 34... Kg7
{[%clk 0:00:14.5]} 35. Qb5 {[%clk 0:00:09]} 35... h5 {[%clk 0:00:12.7]} 36. Nh2
{[%clk 0:00:08.5]} 36... Rc2 {[%clk 0:00:12.2]} 37. Nf3 {[%clk 0:00:07.2]} 37...
Re6 {[%clk 0:00:12.1]} 38. Qd3 {[%clk 0:00:05.4]} 38... Rc3 {[%clk 0:00:11.1]}
39. Qb5 {[%clk 0:00:05.3]} 39... Rc2 {[%clk 0:00:10.6]} 40. Qa5 {[%clk
0:00:05.5]} 40... Ree2 {[%clk 0:00:10.6]} 41. Qa7 {[%clk 0:00:05.1]} 41... Re7
{[%clk 0:00:10.2]} 42. Qxb7 {[%clk 0:00:04.6]} 42... Rxb7 {[%clk 0:00:11.1]} 43.
Ne1 {[%clk 0:00:04.4]} 43... Rc4 {[%clk 0:00:11.1]} 44. Nd3 {[%clk 0:00:04.5]}
44... Rc3 {[%clk 0:00:11.4]} 45. Nc1 {[%clk 0:00:03.8]} 45... d3 {[%clk
0:00:11.4]} 46. Na2 {[%clk 0:00:02.9]} 46... Rc2 {[%clk 0:00:11.5]} 47. Nc1
{[%clk 0:00:02.6]} 47... d2 {[%clk 0:00:11.6]} 48. Nd3 {[%clk 0:00:02.2]} 48...
c4 {[%clk 0:00:11.3]} 49. Nc5 {[%clk 0:00:01.3]} 49... Rc1+ {[%clk 0:00:11.6]}
50. Rxc1 {[%clk 0:00:01.3]} 50... dxc1=Q+ {[%clk 0:00:11.6]} 51. Kh2 {[%clk
0:00:02.1]} 51... Rxb6 {[%clk 0:00:12]} 0-1

[Event "*** Titled Tuesday Blitz"]
[Site "Chess.com"]
[Date "2020.04.14"]
[Round "4"]
[White "guillembaches"]
[Black "Rogue_King"]
[Result "1-0"]
[WhiteElo "2451"]
[BlackElo "2260"]
[TimeControl "180+1"]
[EndTime "10:40:22 PDT"]
[Termination "guillembaches won by resignation"]

1. e4 {[%clk 0:03:00.9]} 1... c5 {[%clk 0:02:58.7]} 2. Nf3 {[%clk 0:03:01.1]}
2... Nc6 {[%clk 0:02:58.6]} 3. d4 {[%clk 0:03:00.5]} 3... cxd4 {[%clk
0:02:59.5]} 4. Nxd4 {[%clk 0:03:01]} 4... Nf6 {[%clk 0:03:00]} 5. Nc3 {[%clk
0:03:01.4]} 5... e5 {[%clk 0:02:59.9]} 6. Ndb5 {[%clk 0:03:01.8]} 6... d6 {[%clk
0:02:59.7]} 7. Bg5 {[%clk 0:03:02.3]} 7... a6 {[%clk 0:03:00]} 8. Na3 {[%clk
0:03:02.8]} 8... b5 {[%clk 0:02:59.2]} 9. Nd5 {[%clk 0:03:03.2]} 9... Be7 {[%clk
0:02:59.3]} 10. Bxf6 {[%clk 0:03:03.5]} 10... Bxf6 {[%clk 0:02:58.8]} 11. c4
{[%clk 0:03:03.9]} 11... b4 {[%clk 0:02:58.2]} 12. Nc2 {[%clk 0:03:04.3]} 12...
Rb8 {[%clk 0:02:56.9]} 13. Be2 {[%clk 0:03:04.6]} 13... O-O {[%clk 0:02:54.9]}
14. O-O {[%clk 0:03:02.6]} 14... Be6 {[%clk 0:02:54.3]} 15. b3 {[%clk
0:02:52.5]} 15... Bg5 {[%clk 0:02:33.9]} 16. Bg4 {[%clk 0:02:46.4]} 16... f5
{[%clk 0:01:47.8]} 17. exf5 {[%clk 0:02:43.5]} 17... Bxf5 {[%clk 0:01:47.4]} 18.
Bxf5 {[%clk 0:02:37.7]} 18... Rxf5 {[%clk 0:01:48.3]} 19. Qd3 {[%clk 0:02:22.2]}
19... Rf7 {[%clk 0:01:43]} 20. Rad1 {[%clk 0:02:17.9]} 20... Qd7 {[%clk
0:01:27]} 21. Qe4 {[%clk 0:02:10.1]} 21... Rbf8 {[%clk 0:01:24.6]} 22. Rd3
{[%clk 0:02:06.7]} 22... a5 {[%clk 0:01:21.6]} 23. g3 {[%clk 0:02:02.2]} 23...
Kh8 {[%clk 0:00:53.6]} 24. Kg2 {[%clk 0:02:00.2]} 24... Bd8 {[%clk 0:00:50.1]}
25. f3 {[%clk 0:01:52.2]} 25... Ne7 {[%clk 0:00:49.7]} 26. Nxe7 {[%clk 0:01:48]}
26... Qxe7 {[%clk 0:00:50.6]} 27. Ne3 {[%clk 0:01:43.4]} 27... Bb6 {[%clk
0:00:49.8]} 28. Nd5 {[%clk 0:01:42.3]} 28... Qa7 {[%clk 0:00:48]} 29. Nxb6
{[%clk 0:01:35.7]} 29... Qxb6 {[%clk 0:00:48.9]} 30. Rfd1 {[%clk 0:01:32.2]}
30... Rf6 {[%clk 0:00:48.3]} 31. Re3 {[%clk 0:01:20.4]} 31... h6 {[%clk
0:00:44.6]} 32. Rdd3 {[%clk 0:01:19.9]} 32... Qa7 {[%clk 0:00:35.5]} 33. Qd5
{[%clk 0:01:17]} 33... a4 {[%clk 0:00:33.9]} 34. c5 {[%clk 0:01:06]} 34... axb3
{[%clk 0:00:32.6]} 35. axb3 {[%clk 0:01:04.7]} 35... Qa2+ {[%clk 0:00:27.9]} 36.
Rd2 {[%clk 0:01:01.2]} 36... Qb1 {[%clk 0:00:18.7]} 37. cxd6 {[%clk 0:00:58.1]}
37... Rd8 {[%clk 0:00:19]} 38. d7 {[%clk 0:00:51.3]} 38... Qf5 {[%clk
0:00:19.3]} 39. Rxe5 {[%clk 0:00:47.8]} 39... Qg6 {[%clk 0:00:13.8]} 40. Re7
{[%clk 0:00:41.5]} 40... Rff8 {[%clk 0:00:09.6]} 41. Qe4 {[%clk 0:00:34.8]}
41... Qg5 {[%clk 0:00:09.5]} 42. Qe3 {[%clk 0:00:28.3]} 42... Qf6 {[%clk
0:00:09.1]} 43. Re6 {[%clk 0:00:23.1]} 43... Qf7 {[%clk 0:00:08.3]} 44. Re7
{[%clk 0:00:22.1]} 44... Qf6 {[%clk 0:00:08.4]} 45. f4 {[%clk 0:00:22.1]} 45...
Qc6+ {[%clk 0:00:08.1]} 46. Qe4 {[%clk 0:00:20.4]} 46... Qf6 {[%clk 0:00:09]}
47. Qe5 {[%clk 0:00:19.5]} 47... Qc6+ {[%clk 0:00:08.6]} 48. Kg1 {[%clk
0:00:18.2]} 48... Qc1+ {[%clk 0:00:08.2]} 49. Qe1 {[%clk 0:00:18.4]} 49... Qxe1+
{[%clk 0:00:08]} 50. Rxe1 {[%clk 0:00:17.9]} 50... Kg8 {[%clk 0:00:08.9]} 51.
Re7 {[%clk 0:00:17.8]} 51... Kh7 {[%clk 0:00:09.3]} 52. Kg2 {[%clk 0:00:14.8]}
52... Kg6 {[%clk 0:00:08.2]} 53. Rd6+ {[%clk 0:00:14.9]} 53... Kh7 {[%clk
0:00:06.9]} 54. Kf3 {[%clk 0:00:14.4]} 54... h5 {[%clk 0:00:05.7]} 55. Ke4
{[%clk 0:00:14.3]} 1-0

[Event "*** Titled Tuesday Blitz"]
[Site "Chess.com"]
[Date "2020.04.14"]
[Round "4"]
[White "josiwales"]
[Black "machupichu10"]
[Result "1/2-1/2"]
[WhiteElo "2576"]
[BlackElo "2797"]
[TimeControl "180+1"]
[EndTime "10:40:24 PDT"]
[Termination "Game drawn by repetition"]

1. e4 {[%clk 0:03:00.9]} 1... c5 {[%clk 0:02:52.5]} 2. Nc3 {[%clk 0:02:59.8]}
2... e6 {[%clk 0:02:50.7]} 3. g3 {[%clk 0:03:00]} 3... Nc6 {[%clk 0:02:49.4]} 4.
Bg2 {[%clk 0:03:00.9]} 4... g6 {[%clk 0:02:50.1]} 5. d3 {[%clk 0:03:01.2]} 5...
Bg7 {[%clk 0:02:50.7]} 6. Be3 {[%clk 0:03:02.1]} 6... b6 {[%clk 0:02:50.4]} 7.
Qd2 {[%clk 0:03:02.6]} 7... Bb7 {[%clk 0:02:50.6]} 8. h4 {[%clk 0:02:59.2]} 8...
h6 {[%clk 0:02:50.4]} 9. Nge2 {[%clk 0:02:58.8]} 9... Nge7 {[%clk 0:02:49.5]}
10. d4 {[%clk 0:02:54.1]} 10... cxd4 {[%clk 0:02:48.1]} 11. Nxd4 {[%clk
0:02:55]} 11... Ne5 {[%clk 0:02:48.1]} 12. Ndb5 {[%clk 0:02:42.2]} 12... Nc4
{[%clk 0:02:39.4]} 13. Qe2 {[%clk 0:02:22.3]} 13... Nxe3 {[%clk 0:02:04.5]} 14.
Nd6+ {[%clk 0:02:20.4]} 14... Kf8 {[%clk 0:02:04.7]} 15. Qxe3 {[%clk 0:02:20]}
15... Bc6 {[%clk 0:01:44.2]} 16. Qf4 {[%clk 0:02:10.5]} 16... f5 {[%clk
0:01:43.8]} 17. O-O {[%clk 0:02:06.2]} 17... g5 {[%clk 0:00:32.4]} 18. hxg5
{[%clk 0:01:59.9]} 18... Ng6 {[%clk 0:00:32.5]} 19. Qd2 {[%clk 0:01:55.1]} 19...
Qxg5 {[%clk 0:00:32.6]} 20. Qxg5 {[%clk 0:01:46.4]} 20... hxg5 {[%clk
0:00:33.5]} 21. exf5 {[%clk 0:01:43.8]} 21... exf5 {[%clk 0:00:31.6]} 22. Nxf5
{[%clk 0:01:39.7]} 22... Bxc3 {[%clk 0:00:30.6]} 23. bxc3 {[%clk 0:01:39.4]}
23... Ne5 {[%clk 0:00:28.6]} 24. f4 {[%clk 0:01:33.8]} 24... Bxg2 {[%clk
0:00:20.3]} 25. Kxg2 {[%clk 0:01:34.7]} 25... Ng4 {[%clk 0:00:20.3]} 26. fxg5
{[%clk 0:01:29.3]} 26... Kg8 {[%clk 0:00:20]} 27. Rf4 {[%clk 0:01:22.5]} 27...
Ne5 {[%clk 0:00:16.4]} 28. Raf1 {[%clk 0:01:20.3]} 28... Ng6 {[%clk 0:00:15.2]}
29. Nh6+ {[%clk 0:01:15.6]} 29... Rxh6 {[%clk 0:00:15]} 30. gxh6 {[%clk
0:01:16.5]} 30... Nxf4+ {[%clk 0:00:15.7]} 31. Rxf4 {[%clk 0:01:17.4]} 31... Rc8
{[%clk 0:00:16]} 32. g4 {[%clk 0:00:54]} 32... Kh7 {[%clk 0:00:15.2]} 33. c4
{[%clk 0:00:42.3]} 33... Kxh6 {[%clk 0:00:15.3]} 34. Kg3 {[%clk 0:00:43.2]}
34... Kg5 {[%clk 0:00:11.6]} 35. Rd4 {[%clk 0:00:43.5]} 35... Rc6 {[%clk
0:00:08.9]} 36. Rd5+ {[%clk 0:00:37.2]} 36... Kg6 {[%clk 0:00:08.9]} 37. Rxd7
{[%clk 0:00:34.8]} 37... Rxc4 {[%clk 0:00:08.7]} 38. Rxa7 {[%clk 0:00:35.1]}
38... Rxc2 {[%clk 0:00:09.2]} 39. Rb7 {[%clk 0:00:24.8]} 39... Kg5 {[%clk
0:00:07.2]} 40. Rg7+ {[%clk 0:00:21.5]} 40... Kf6 {[%clk 0:00:06.8]} 41. Rh7
{[%clk 0:00:20]} 41... Rxa2 {[%clk 0:00:04.5]} 42. Rh6+ {[%clk 0:00:20]} 42...
Kg5 {[%clk 0:00:05.2]} 43. Rh5+ {[%clk 0:00:17]} 43... Kg6 {[%clk 0:00:03.5]}
44. Rb5 {[%clk 0:00:17.9]} 44... Ra6 {[%clk 0:00:02.2]} 45. Kf4 {[%clk
0:00:18.3]} 45... Ra4+ {[%clk 0:00:02.2]} 46. Kg3 {[%clk 0:00:18.5]} 46... Ra6
{[%clk 0:00:02.2]} 47. Kh4 {[%clk 0:00:18.2]} 47... Kg7 {[%clk 0:00:01.7]} 48.
Kg5 {[%clk 0:00:18.2]} 48... Ra5 {[%clk 0:00:02.2]} 49. Rf5 {[%clk 0:00:09.6]}
49... Ra7 {[%clk 0:00:02.6]} 50. Rb5 {[%clk 0:00:07.2]} 50... Ra5 {[%clk
0:00:03.1]} 51. Rf5 {[%clk 0:00:07.4]} 51... Ra7 {[%clk 0:00:02]} 52. Rb5 {[%clk
0:00:06.8]} 52... Ra5 {[%clk 0:00:02.6]} 1/2-1/2